bitfinex-derivatives/quotes_BNBF0:USTF0_20241225
["timestamp","ask_amount","ask_price","bid_price","bid_amount"]
[1735084909120,2.43137017,697.36,696.1,0.28731504]
[1735084909324,2.43137017,697.35,696.1,0.28731504]
[1735084909521,2.43137017,697.34,696.1,0.28731504]
[1735084909823,2.43137017,697.33,696.1,0.28731504]
[1735084910024,2.43137017,697.32,696.1,0.28731504]
[1735084910224,2.43137017,697.31,696.1,0.28731504]
[1735084910424,2.43137017,697.3,696.1,0.28731504]
[1735084910724,2.4314079,697.29,695.31,1.07050719]
[1735084910924,2.4314079,697.28,695.33,0.28763321]
[1735084911119,2.4314079,697.27,695.33,0.28763321]
[1735084911319,2.4314079,697.26,695.33,0.28763321]
[1735084911522,2.4314079,697.25,695.33,0.28763321]
[1735084911724,0.28677535,697.41,695.33,0.28763321]
[1735084911725,2.4314079,697.24,695.33,0.28763321]
[1735084911924,2.4314079,697.23,695.33,0.28763321]
[1735084912119,2.4314079,697.22,695.33,0.28763321]
[1735084912320,2.71833835,697.21,695.33,0.28763321]
[1735084912519,2.43148074,697.2,695.33,0.28763321]
[1735084912719,2.43148074,697.19,695.33,0.28763321]
[1735084912919,2.43148074,697.18,695.33,0.28763321]
[1735084913225,2.71835481,697.17,695.33,0.28763321]
[1735084913425,2.71836478,697.16,695.33,0.28763321]
[1735084913624,2.43148659,697.15,695.33,0.28763321]
[1735084913825,2.43148659,697.14,695.33,0.28763321]
[1735084914126,2.43148659,697.13,695.33,0.28763321]
[1735084914326,2.16753134,697.12,695.33,0.28763321]
[1735084914521,2.16753134,697.11,695.33,0.28763321]
[1735084914722,2.16753134,697.1,695.33,0.28763321]
[1735084914920,0.28687819,697.16,695.33,0.28763321]
[1735084914921,2.16753134,697.09,695.33,0.28763321]
[1735084915125,2.16753134,697.08,695.33,0.28763321]
[1735084915326,0.88518892,697.07,695.33,0.28763321]
[1735084915528,2.16732892,697.06,695.33,0.28763321]
[1735084915823,2.16732892,697.05,695.33,0.28763321]
[1735084916025,2.16732892,697.04,695.33,0.28763321]
[1735084916223,2.16732892,697.03,695.33,0.28763321]
[1735084916427,2.16732892,697.02,695.33,0.28763321]
[1735084916626,2.16732892,697.01,695.33,0.28763321]
[1735084916927,2.16732892,697.0,695.33,0.28763321]
[1735084917223,2.16732892,696.99,695.33,0.28763321]
[1735084917424,2.16732892,696.98,695.33,0.28763321]
[1735084917727,2.16732892,696.97,695.33,0.28763321]
[1735084917926,0.28687819,697.16,695.33,0.28763321]
[1735084917927,2.16732892,696.96,695.33,0.28763321]
[1735084918122,2.16732892,696.95,695.33,0.28763321]
[1735084918327,1.28214,696.94,695.33,0.28763321]
[1735084918626,2.16665498,696.93,695.33,0.28763321]
[1735084918827,2.16665498,696.92,695.33,0.28763321]
[1735084919022,2.16665498,696.91,695.33,0.28763321]
[1735084919225,0.28687819,697.16,695.33,0.28763321]
[1735084919226,2.16665498,696.9,695.33,0.28763321]
[1735084919520,2.16665498,696.89,695.33,0.28763321]
[1735084919722,2.16665498,696.88,695.33,0.28763321]
[1735084919922,2.16665498,696.87,695.33,0.28763321]
[1735084920126,2.16665498,696.86,695.33,0.28763321]
[1735084920321,2.16665498,696.85,695.33,0.28763321]
[1735084920522,0.28687819,697.16,695.33,0.28763321]
[1735084920523,2.16665498,696.84,695.33,0.28763321]
[1735084920721,2.16665498,696.83,695.33,0.28763321]
[1735084920928,2.16665498,696.82,695.33,0.28763321]
[1735084921124,2.16665498,696.81,695.33,0.28763321]
[1735084921329,2.16665498,696.8,695.33,0.28763321]
[1735084921525,2.16665498,696.79,695.33,0.28763321]
[1735084921729,0.28687819,697.16,695.33,0.28763321]
[1735084921730,2.16665498,696.78,695.33,0.28763321]
[1735084921926,2.16665498,696.77,695.33,0.28763321]
[1735084922130,2.16665498,696.76,695.33,0.28763321]
[1735084922428,2.16665498,696.75,695.33,0.28763321]
[1735084922630,2.16665498,696.74,695.33,0.28763321]
[1735084922932,2.43071654,696.73,695.33,0.28763321]
[1735084923124,1.14857654,696.72,695.33,0.28763321]
[1735084923324,2.43071654,696.71,695.33,0.28763321]
[1735084923529,2.16319015,696.7,695.33,0.28763321]
[1735084923729,2.16319015,696.69,695.33,0.28763321]
[1735084923926,2.16319015,696.68,695.33,0.28763321]
[1735084924126,2.16319015,696.67,695.33,0.28763321]
[1735084924331,2.16319015,696.66,695.33,0.28763321]
[1735084924530,2.16319015,696.65,695.33,0.28763321]
[1735084924733,2.16319015,696.64,695.33,0.28763321]
[1735084924928,2.16319015,696.63,695.33,0.28763321]
[1735084925129,2.16319015,696.62,695.33,0.28763321]
[1735084925329,2.16319015,696.61,695.33,0.28763321]
[1735084925530,2.16319015,696.6,695.33,0.28763321]
[1735084925730,0.64842667,697.15,695.33,0.28763321]
[1735084925731,2.16319015,696.59,695.33,0.28763321]
[1735084925933,2.16319015,696.58,695.33,0.28763321]
[1735084926132,2.16319015,696.57,695.33,0.28763321]
[1735084926328,2.16319015,696.56,695.33,0.28763321]
[1735084926550,2.16319015,696.55,695.33,0.28763321]
[1735084926728,2.16215296,696.54,695.33,0.28763321]
[1735084926931,2.16215296,696.53,695.33,0.28763321]
[1735084927135,2.16215296,696.52,695.33,0.28763321]
[1735084927329,2.16215296,696.51,695.33,0.28763321]
[1735084927534,2.16215296,696.5,695.33,0.28763321]
[1735084927734,2.16215296,696.49,695.33,0.28763321]
[1735084927931,2.16215296,696.48,695.33,0.28763321]
[1735084928135,2.16215296,696.47,695.33,0.28763321]
[1735084928329,2.16215296,696.46,695.33,0.28763321]
[1735084928534,2.16215296,696.45,695.33,0.28763321]
[1735084928731,0.28687819,697.16,695.33,0.28763321]
[1735084928732,2.16215296,696.44,695.33,0.28763321]
[1735084929034,2.16215296,696.43,695.33,0.28763321]
[1735084929230,2.16215296,696.42,695.33,0.28763321]
[1735084929429,2.16215296,696.41,695.33,0.28763321]
[1735084929636,2.16215296,696.4,695.33,0.28763321]
[1735084929835,2.16215296,696.39,695.33,0.28763321]
[1735084930037,2.16215296,696.38,695.33,0.28763321]
[1735084930238,2.16215296,696.37,695.33,0.28763321]
[1735084930438,2.16215296,696.36,695.33,0.28763321]
[1735084930638,2.16215296,696.35,695.33,0.28763321]
[1735084930935,2.16215296,696.34,695.33,0.28763321]
[1735084931138,2.16215296,696.33,695.33,0.28763321]
[1735084931339,2.16215296,696.32,695.33,0.28763321]
[1735084931536,2.16215296,696.31,695.33,0.28763321]
[1735084931736,2.16215296,696.3,695.33,0.28763321]
[1735084931934,2.16215296,696.29,695.33,0.28763321]
[1735084932138,2.16215296,696.28,695.33,0.28763321]
[1735084932338,2.16215296,696.27,695.33,0.28763321]
[1735084932537,2.16215296,696.26,695.33,0.28763321]
[1735084932735,2.15865725,696.25,695.33,0.28763321]
[1735084932939,2.15865725,696.24,695.33,0.28763321]
[1735084933240,1.27763798,696.23,695.33,0.28763321]
[1735084933441,1.27763798,696.22,695.33,0.28763321]
[1735084933640,1.27586609,696.21,695.33,0.28763321]
[1735084933841,0.28687819,697.16,695.33,0.28763321]
[1735084934042,2.42083424,697.15,695.33,0.28763321]
[1735084934238,2.42083424,697.14,695.33,0.28763321]
[1735084934436,2.15675902,697.13,695.33,0.28763321]
[1735084934636,2.42084863,697.12,695.33,0.28763321]
[1735084934841,2.42084863,697.11,695.33,0.28763321]
[1735084935042,2.42084863,697.1,695.33,0.28763321]
[1735084935245,0.28687819,697.16,695.33,0.28763321]
[1735084935246,2.15675902,697.09,695.33,0.28763321]
[1735084935441,2.4208555,697.08,695.33,0.28763321]
[1735084935742,1.53996756,697.07,695.33,0.28763321]
[1735084935939,2.4205669,697.06,695.33,0.28763321]
[1735084936138,2.4205669,697.05,695.33,0.28763321]
[1735084936442,2.4205669,697.04,695.33,0.28763321]
[1735084936642,2.4205669,697.03,695.33,0.28763321]
[1735084936941,2.4205669,697.02,695.33,0.28763321]
[1735084937145,2.4205669,697.01,695.33,0.28763321]
[1735084937444,2.4205669,697.0,695.33,0.28763321]
[1735084937641,2.4205669,696.99,695.33,0.28763321]
[1735084937940,2.4205669,696.98,695.33,0.28763321]
[1735084938141,2.4205669,696.97,695.33,0.28763321]
[1735084938338,2.4205669,696.96,695.33,0.28763321]
[1735084938538,0.28687819,697.16,695.33,0.28763321]
[1735084938539,2.4205669,696.95,695.33,0.28763321]
[1735084938844,2.4205669,696.94,695.33,0.28763321]
[1735084939043,2.4205669,696.93,695.33,0.28763321]
[1735084939238,2.4205669,696.92,695.33,0.28763321]
[1735084939543,2.4205669,696.91,695.33,0.28763321]
[1735084939737,2.4205669,696.9,695.33,0.28763321]
[1735084939943,2.4205669,696.89,695.33,0.28763321]
[1735084940143,2.42055848,696.88,695.33,0.28763321]
[1735084940343,2.42055848,696.87,695.33,0.28763321]
[1735084940543,2.42055848,696.86,695.33,0.28763321]
[1735084940738,2.42055848,696.85,695.33,0.28763321]
[1735084940938,2.42055848,696.84,695.33,0.28763321]
[1735084941241,2.42055848,696.83,695.33,0.28763321]
[1735084941440,2.42055848,696.82,695.33,0.28763321]
[1735084941638,2.42055848,696.81,695.33,0.28763321]
[1735084941945,2.41801196,696.8,695.33,0.28763321]
[1735084942142,1.07433341,697.12,695.33,0.28763321]
[1735084942143,2.41801196,696.79,695.33,0.28763321]
[1735084942338,1.14381953,696.78,695.33,0.28763321]
[1735084942538,2.41795014,696.77,695.33,0.28763321]
[1735084942741,2.15386208,696.76,695.33,0.28763321]
[1735084942938,2.15386208,696.75,695.33,0.28763321]
[1735084943238,1.07433341,697.12,695.33,0.28763321]
[1735084943239,2.15386208,696.74,695.33,0.28763321]
[1735084943537,2.15386208,696.73,695.33,0.28763321]
[1735084943742,2.15386208,696.72,695.33,0.28763321]
[1735084943944,2.15386208,696.71,695.33,0.28763321]
[1735084944246,2.41793587,696.7,695.33,0.28763321]
[1735084944441,2.41793587,696.69,695.33,0.28763321]
[1735084944640,0.64843903,697.11,695.33,0.28763321]
[1735084944641,2.41793587,696.68,695.33,0.28763321]
[1735084944843,2.41751154,696.67,695.33,0.28763321]
[1735084945045,2.41751154,696.66,695.33,0.28763321]
[1735084945247,2.15343775,696.65,695.33,0.28763321]
[1735084945545,2.15343775,696.64,695.33,0.28763321]
[1735084945744,2.15343775,696.63,695.33,0.28763321]
[1735084945944,2.15343775,696.62,695.33,0.28763321]
[1735084946145,2.15343775,696.61,695.33,0.28763321]
[1735084946345,2.15343775,696.6,695.33,0.28763321]
[1735084946541,2.15343775,696.59,695.33,0.28763321]
[1735084946740,2.15343775,696.58,695.33,0.28763321]
[1735084946939,2.15343775,696.57,695.33,0.28763321]
[1735084947140,2.15343775,696.56,695.33,0.28763321]
[1735084947346,2.15343775,696.55,695.33,0.28763321]
[1735084947542,2.15343775,696.54,695.33,0.28763321]
[1735084947846,2.15343775,696.53,695.33,0.28763321]
[1735084948040,2.15343775,696.52,695.33,0.28763321]
[1735084948244,2.15343775,696.51,695.33,0.28763321]
[1735084948546,2.15343775,696.5,695.33,0.28763321]
[1735084948741,2.15343775,696.49,695.33,0.28763321]
[1735084948941,2.15343775,696.48,695.33,0.28763321]
[1735084949141,2.15343775,696.47,695.33,0.28763321]
[1735084949342,2.15343775,696.46,695.33,0.28763321]
[1735084949553,2.15343775,696.45,695.33,0.28763321]
[1735084949744,2.15343775,696.44,695.33,0.28763321]
[1735084949940,2.15343775,696.43,695.33,0.28763321]
[1735084950142,2.15343775,696.42,695.33,0.28763321]
[1735084950448,2.15343775,696.41,695.33,0.28763321]
[1735084950647,2.15343775,696.4,695.33,0.28763321]
[1735084950849,2.15343775,696.39,695.33,0.28763321]
[1735084951045,2.15343775,696.38,695.33,0.28763321]
[1735084951242,2.15343775,696.37,695.33,0.28763321]
[1735084951449,2.15329692,696.36,695.33,0.28763321]
[1735084951747,2.15329692,696.35,695.33,0.28763321]
[1735084951947,2.15329692,696.34,695.33,0.28763321]
[1735084952150,2.15329692,696.33,695.33,0.28763321]
[1735084952444,2.15329692,696.32,695.33,0.28763321]
[1735084952651,2.15329692,696.31,695.33,0.28763321]
[1735084952844,2.15329692,696.3,695.33,0.28763321]
[1735084953043,2.15329692,696.29,695.33,0.28763321]
[1735084953244,2.15329692,696.28,695.33,0.28763321]
[1735084953549,2.15329692,696.27,695.33,0.28763321]
[1735084953749,2.15329692,696.26,695.33,0.28763321]
[1735084953950,1.27402909,696.25,695.33,0.28763321]
[1735084954152,2.15365027,696.24,695.33,0.28763321]
[1735084954351,2.15365027,696.23,695.33,0.28763321]
[1735084954544,2.15365027,696.22,695.33,0.28763321]
[1735084954748,2.15365027,696.21,695.33,0.28763321]
[1735084954944,2.15365027,696.2,695.33,0.28763321]
[1735084955250,1.27402909,696.19,695.33,0.28763321]
[1735084955450,1.27402909,696.18,695.33,0.28763321]
[1735084955749,1.27402909,696.17,695.33,0.28763321]
[1735084955947,1.07433341,696.64,695.33,0.28763321]
[1735084956151,2.41864761,696.63,695.33,0.28763321]
[1735084956346,2.41864761,696.62,695.33,0.28763321]
[1735084956548,2.15455156,696.61,695.33,0.28763321]
[1735084956751,2.15455156,696.6,695.33,0.28763321]
[1735084956945,2.15487282,696.59,695.33,0.28763321]
[1735084957151,2.15487282,696.58,695.33,0.28763321]
[1735084957354,2.15487282,696.57,695.33,0.28763321]
[1735084957551,2.15487282,696.56,695.33,0.28763321]
[1735084957756,2.15487282,696.55,695.33,0.28763321]
[1735084957956,2.15487282,696.54,695.33,0.28763321]
[1735084958156,2.15487282,696.53,695.33,0.28763321]
[1735084958353,2.15487282,696.52,695.33,0.28763321]
[1735084958554,2.15487282,696.51,695.33,0.28763321]
[1735084958758,2.15487282,696.5,695.33,0.28763321]
[1735084958953,2.15487282,696.49,695.33,0.28763321]
[1735084959154,2.15487282,696.48,695.33,0.28763321]
[1735084959352,2.15487282,696.47,695.33,0.28763321]
[1735084959555,2.15487282,696.46,695.33,0.28763321]
[1735084959855,2.15487282,696.45,695.33,0.28763321]
[1735084960053,2.15591694,696.44,695.33,0.28763321]
[1735084960252,2.15591694,696.43,695.33,0.28763321]
[1735084960483,1.07433341,696.71,695.33,0.28763321]
[1735084960759,2.42106912,696.7,695.33,0.28763321]
[1735084960959,1.07433341,696.59,695.33,0.28763321]
[1735084961159,2.42106912,696.58,695.33,0.28763321]
[1735084961359,2.42106912,696.57,695.33,0.28763321]
[1735084961558,2.42106912,696.56,695.33,0.28763321]
[1735084961858,2.42106912,696.55,695.33,0.28763321]
[1735084962055,2.19427553,696.96,695.33,0.28763321]
[1735084962056,2.15697479,696.54,695.33,0.28763321]
[1735084962261,2.15697479,696.53,695.33,0.28763321]
[1735084962453,2.15697479,696.52,695.33,0.28763321]
[1735084962654,2.15697479,696.51,695.33,0.28763321]
[1735084962856,2.15697479,696.5,695.33,0.28763321]
[1735084963057,2.15905933,696.49,695.33,0.28763321]
[1735084963254,2.15905933,696.48,695.33,0.28763321]
[1735084963455,2.15905933,696.47,695.33,0.28763321]
[1735084963760,2.15905933,696.46,695.33,0.28763321]
[1735084963960,2.15905933,696.45,695.33,0.28763321]
[1735084964153,1.07433341,696.6,695.33,0.28763321]
[1735084964154,2.15905933,696.44,695.33,0.28763321]
[1735084964356,2.15905933,696.43,695.33,0.28763321]
[1735084964559,1.07433341,696.6,695.33,0.28763321]
[1735084964560,2.15905933,696.42,695.33,0.28763321]
[1735084964760,2.15905933,696.41,695.33,0.28763321]
[1735084964957,2.15905933,696.4,695.33,0.28763321]
[1735084965158,2.15905933,696.39,695.33,0.28763321]
[1735084965363,2.15905933,696.38,695.33,0.28763321]
[1735084965558,2.15905933,696.37,695.33,0.28763321]
[1735084965756,2.15905933,696.36,695.33,0.28763321]
[1735084965961,1.27723091,696.35,695.33,0.28763321]
[1735084966158,2.16031071,696.34,695.33,0.28763321]
[1735084966361,2.16031071,696.33,695.33,0.28763321]
[1735084966562,2.16031071,696.32,695.33,0.28763321]
[1735084966758,2.16031071,696.31,695.33,0.28763321]
[1735084966958,2.16031071,696.3,695.33,0.28763321]
[1735084967161,2.16031071,696.29,695.33,0.28763321]
[1735084967357,2.16031071,696.28,695.33,0.28763321]
[1735084967562,2.16031071,696.27,695.33,0.28763321]
[1735084967760,2.16031071,696.26,695.33,0.28763321]
[1735084967958,2.16031071,696.25,695.33,0.28763321]
[1735084968264,1.07433341,696.7,695.33,0.28763321]
[1735084968265,2.16031071,696.24,695.33,0.28763321]
[1735084968464,2.16031071,696.23,695.33,0.28763321]
[1735084968664,2.16031071,696.22,695.33,0.28763321]
[1735084968861,2.16031071,696.21,695.33,0.28763321]
[1735084969062,1.27997898,696.2,695.33,0.28763321]
[1735084969264,1.07433341,696.67,695.33,0.28763321]
[1735084969265,2.16371921,696.19,695.33,0.28763321]
[1735084969475,1.27997898,696.18,695.33,0.28763321]
[1735084969762,2.19427553,697.17,695.33,0.28763321]
[1735084969763,2.16355858,696.17,695.33,0.28763321]
[1735084969966,1.07433341,696.69,695.33,0.28763321]
[1735084969967,2.16355858,696.16,695.33,0.28763321]
[1735084970162,2.16355858,696.15,695.33,0.28763321]
[1735084970365,2.16355858,696.14,695.33,0.28763321]
[1735084970565,2.16355858,696.13,695.33,0.28763321]
[1735084970765,2.16355858,696.12,695.33,0.28763321]
[1735084970965,2.16355858,696.11,695.33,0.28763321]
[1735084971165,2.16355858,696.1,695.33,0.28763321]
[1735084971367,2.16355858,696.09,695.33,0.28763321]
[1735084971568,2.16355858,696.08,695.33,0.28763321]
[1735084971769,2.16355858,696.07,695.33,0.28763321]
[1735084971964,2.16355858,696.06,695.33,0.28763321]
[1735084972168,2.16355858,696.05,695.33,0.28763321]
[1735084972368,1.27997898,696.04,695.33,0.28763321]
[1735084972569,1.07433341,696.77,695.33,0.28763321]
[1735084972770,2.42997981,696.76,695.33,0.28763321]
[1735084972970,2.42997981,696.75,695.33,0.28763321]
[1735084973172,2.42997911,696.74,695.33,0.28763321]
[1735084973366,2.16588567,696.73,695.33,0.28763321]
[1735084973567,2.16588567,696.72,695.33,0.28763321]
[1735084973773,2.16588567,696.71,695.33,0.28763321]
[1735084973972,2.16588567,696.7,695.33,0.28763321]
[1735084974274,2.16588567,696.69,695.33,0.28763321]
[1735084974474,2.16588567,696.68,695.33,0.28763321]
[1735084974679,2.16588567,696.67,695.33,0.28763321]
[1735084974873,2.16588567,696.66,695.33,0.28763321]
[1735084975170,2.16822152,696.65,695.33,0.28763321]
[1735084975375,2.16822152,696.64,695.33,0.28763321]
[1735084975578,2.16822152,696.63,695.33,0.28763321]
[1735084975875,2.16822152,696.62,695.33,0.28763321]
[1735084976074,2.16822152,696.61,695.33,0.28763321]
[1735084976274,2.16822152,696.6,695.33,0.28763321]
[1735084976478,2.19427553,697.4,695.33,0.28763321]
[1735084976479,2.16822152,696.59,695.33,0.28763321]
[1735084976676,2.16822152,696.58,695.33,0.28763321]
[1735084976870,2.16822152,696.57,695.33,0.28763321]
[1735084977070,2.16822152,696.56,695.33,0.28763321]
[1735084977270,2.16822152,696.55,695.33,0.28763321]
[1735084977471,2.16822152,696.54,695.33,0.28763321]
[1735084977671,2.16822152,696.53,695.33,0.28763321]
[1735084977873,2.16822152,696.52,695.33,0.28763321]
[1735084978083,1.07433341,696.92,695.33,0.28763321]
[1735084978378,2.43417139,696.91,695.33,0.28763321]
[1735084978586,2.43417139,696.9,695.33,0.28763321]
[1735084978781,2.43416244,696.89,695.33,0.28763321]
[1735084978978,2.43416244,696.88,695.33,0.28763321]
[1735084979278,2.43416244,696.87,695.33,0.28763321]
[1735084979579,2.43416244,696.86,695.33,0.28763321]
[1735084979775,2.43416244,696.85,695.33,0.28763321]
[1735084980078,1.07433341,696.95,695.33,0.28763321]
[1735084980079,2.43416244,696.84,695.33,0.28763321]
[1735084980280,1.54783222,696.83,695.33,0.28763321]
[1735084980480,2.43414693,696.82,695.33,0.28763321]
[1735084980677,1.07433341,696.91,695.33,0.28763321]
[1735084980678,2.43414693,696.81,695.33,0.28763321]
[1735084980879,2.17006761,696.8,695.33,0.28763321]
[1735084981177,2.43411838,696.79,695.33,0.28763321]
[1735084981374,2.43411838,696.78,695.33,0.28763321]
[1735084981580,1.07433341,696.91,695.33,0.28763321]
[1735084981581,2.43411838,696.77,695.33,0.28763321]
[1735084981775,2.43411838,696.76,695.33,0.28763321]
[1735084982082,2.43411838,696.75,695.33,0.28763321]
[1735084982274,2.43411838,696.74,695.33,0.28763321]
[1735084982479,2.43411838,696.73,695.33,0.28763321]
[1735084982675,2.17006761,696.72,695.33,0.28763321]
[1735084982877,2.17006761,696.71,695.33,0.28763321]
[1735084983074,2.17006761,696.7,695.33,0.28763321]
[1735084983278,1.07433341,696.88,695.33,0.28763321]
[1735084983480,2.43351539,696.87,695.33,0.28763321]
[1735084983675,2.43351539,696.86,695.33,0.28763321]
[1735084983981,2.43351539,696.85,695.33,0.28763321]
[1735084984181,2.43351539,696.84,695.33,0.28763321]
[1735084984381,2.43351539,696.83,695.33,0.28763321]
[1735084984582,2.43351539,696.82,695.33,0.28763321]
[1735084984776,2.43351539,696.81,695.33,0.28763321]
[1735084984979,2.43351539,696.8,695.33,0.28763321]
[1735084985178,2.43351539,696.79,695.33,0.28763321]
[1735084985381,2.43351539,696.78,695.33,0.28763321]
[1735084985581,2.43351539,696.77,695.33,0.28763321]
[1735084985781,2.43351539,696.76,695.33,0.28763321]
[1735084985981,2.43351539,696.75,695.33,0.28763321]
[1735084986295,0.26402643,696.74,695.33,0.28763321]
[1735084986483,1.28298679,696.73,695.33,0.28763321]
[1735084986683,2.16877918,696.72,695.33,0.28763321]
[1735084986874,1.07433341,696.95,695.33,0.28763321]
[1735084987081,2.4327996,696.94,695.33,0.28763321]
[1735084987276,2.4327996,696.93,695.33,0.28763321]
[1735084987476,2.4327996,696.92,695.33,0.28763321]
[1735084987680,2.4327996,696.91,695.33,0.28763321]
[1735084987877,2.4327996,696.9,695.33,0.28763321]
[1735084988080,2.4327996,696.89,695.33,0.28763321]
[1735084988278,2.4327996,696.88,695.33,0.28763321]
[1735084988476,0.26403077,696.87,695.33,0.28763321]
[1735084988682,2.16845557,696.86,695.33,0.28763321]
[1735084988889,2.43248634,696.85,695.33,0.28763321]
[1735084989185,1.07433341,697.07,695.33,0.28763321]
[1735084989186,2.43248634,696.84,695.33,0.28763321]
[1735084989387,1.14969093,696.83,695.33,0.28763321]
[1735084989684,2.43245216,696.82,695.33,0.28763321]
[1735084989885,2.43245216,696.81,695.33,0.28763321]
[1735084990185,2.43245216,696.8,695.33,0.28763321]
[1735084990385,2.43245216,696.79,695.33,0.28763321]
[1735084990586,2.43245216,696.78,695.33,0.28763321]
[1735084990780,2.43245216,696.77,695.33,0.28763321]
[1735084990986,2.43245216,696.76,695.33,0.28763321]
[1735084991183,2.43245216,696.75,695.33,0.28763321]
[1735084991383,2.43246507,696.74,695.33,0.28763321]
[1735084991583,2.43246507,696.73,695.33,0.28763321]
[1735084991781,2.43246507,696.72,695.33,0.28763321]
[1735084992080,2.16842139,696.71,695.33,0.28763321]
[1735084992284,2.16842139,696.7,695.33,0.28763321]
[1735084992481,2.43231985,696.69,695.33,0.28763321]
[1735084992782,2.16827314,696.68,695.33,0.28763321]
[1735084992984,2.16827314,696.67,695.33,0.28763321]
[1735084993185,2.16827314,696.66,695.33,0.28763321]
[1735084993382,2.16827314,696.65,695.33,0.28763321]
[1735084993585,2.16827314,696.64,695.33,0.28763321]
[1735084993784,2.16827314,696.63,695.33,0.28763321]
[1735084993984,2.16827314,696.62,695.33,0.28763321]
[1735084994189,2.16827314,696.61,695.33,0.28763321]
[1735084994388,2.16827314,696.6,695.33,0.28763321]
[1735084994584,2.16827314,696.59,695.33,0.28763321]
[1735084994789,2.16827314,696.58,695.33,0.28763321]
[1735084995091,2.16827314,696.57,695.33,0.28763321]
[1735084995390,1.28261298,696.56,695.33,0.28763321]
[1735084995592,2.16803188,696.55,695.33,0.28763321]
[1735084995891,0.8854189,696.54,695.33,0.28763321]
[1735084996190,2.16786208,696.53,695.33,0.28763321]
[1735084996391,2.16786208,696.52,695.33,0.28763321]
[1735084996591,2.16786208,696.51,695.33,0.28763321]
[1735084996793,2.16786208,696.5,695.33,0.28763321]
[1735084996993,2.16786208,696.49,695.33,0.28763321]
[1735084997187,2.16786208,696.48,695.33,0.28763321]
[1735084997393,2.16786208,696.47,695.33,0.28763321]
[1735084997590,0.88536362,696.46,695.33,0.28763321]
[1735084997791,2.16772592,696.45,695.33,0.28763321]
[1735084997991,2.16772592,696.44,695.33,0.28763321]
[1735084998191,2.16772592,696.43,695.33,0.28763321]
[1735084998394,2.16772592,696.42,695.33,0.28763321]
[1735084998595,2.18539754,701.58,695.33,0.28763321]
[1735084998596,2.16769912,696.41,695.33,0.28763321]
[1735084998795,2.16769912,696.4,695.33,0.28763321]
[1735084998995,2.16769912,696.39,695.33,0.28763321]
[1735084999191,2.16769912,696.38,695.33,0.28763321]
[1735084999396,2.16769912,696.37,695.33,0.28763321]
[1735084999597,2.16769912,696.36,695.33,0.28763321]
[1735084999794,2.16769912,696.35,695.33,0.28763321]
[1735085000095,2.19427553,697.31,695.33,0.28763321]
[1735085000096,2.16769912,696.34,695.33,0.28763321]
[1735085000296,2.16769912,696.33,695.33,0.28763321]
[1735085000496,2.16769912,696.32,695.33,0.28763321]
[1735085000689,1.07433341,696.98,695.33,0.28763321]
[1735085000690,2.16769912,696.31,695.33,0.28763321]
[1735085000893,2.16769912,696.3,695.33,0.28763321]
[1735085001095,2.16769912,696.29,695.33,0.28763321]
[1735085001296,2.16769912,696.28,695.33,0.28763321]
[1735085001502,2.16769912,696.27,695.33,0.28763321]
[1735085001697,2.16769912,696.26,695.33,0.28763321]
[1735085001896,1.07433341,697.07,695.33,0.28763321]
[1735085001897,2.16769912,696.25,695.33,0.28763321]
[1735085002097,2.16769912,696.24,695.33,0.28763321]
[1735085002397,2.16769912,696.23,695.33,0.28763321]
[1735085002598,2.16769912,696.22,695.33,0.28763321]
[1735085002898,2.16769912,696.21,695.33,0.28763321]
[1735085003090,2.16769912,696.2,695.33,0.28763321]
[1735085003289,2.16769912,696.19,695.33,0.28763321]
[1735085003494,2.16769912,696.18,695.33,0.28763321]
[1735085003690,2.16769912,696.17,695.33,0.28763321]
[1735085003995,2.16769912,696.16,695.33,0.28763321]
[1735085004197,2.16769912,696.15,695.33,0.28763321]
[1735085004390,2.16769912,696.14,695.33,0.28763321]
[1735085004595,1.07433341,696.93,695.33,0.28763321]
[1735085004897,2.43133494,696.92,695.33,0.28763321]
[1735085005192,3.50567049,696.91,695.33,0.28763321]
[1735085005391,2.43133708,696.9,695.33,0.28763321]
[1735085005594,2.43133708,696.89,695.33,0.28763321]
[1735085005795,2.43133708,696.88,695.33,0.28763321]
[1735085006091,2.16729974,696.87,695.33,0.28763321]
[1735085006299,2.16729974,696.86,695.33,0.28763321]
[1735085006591,2.16729974,696.85,695.33,0.28763321]
[1735085006797,2.16729974,696.84,695.33,0.28763321]
[1735085006990,2.16729974,696.83,695.33,0.28763321]
[1735085007190,2.16729974,696.82,695.33,0.28763321]
[1735085007394,2.16729974,696.81,695.33,0.28763321]
[1735085007592,2.16721327,696.8,695.33,0.28763321]
[1735085007793,2.16721327,696.79,695.33,0.28763321]
[1735085007989,2.16721327,696.78,695.33,0.28763321]
[1735085008191,2.16721327,696.77,695.33,0.28763321]
[1735085008392,2.16721327,696.76,695.33,0.28763321]
[1735085008598,2.16721327,696.75,695.33,0.28763321]
[1735085008798,2.16721327,696.74,695.33,0.28763321]
[1735085008999,2.16721327,696.73,695.33,0.28763321]
[1735085009201,2.16721327,696.72,695.33,0.28763321]
[1735085009400,2.16721327,696.71,695.33,0.28763321]
[1735085009599,2.16721327,696.7,695.33,0.28763321]
[1735085009900,2.16721327,696.69,695.33,0.28763321]
[1735085010102,2.16721327,696.68,695.33,0.28763321]
[1735085010294,2.16721327,696.67,695.33,0.28763321]